[Event "Dutch Open 2022"]
[Site "Dieren"]
[Date "2022.07.29"]
[Round "4.8"]
[White "Vos, Tjark"]
[Black "Gilmanov, Mansur"]
[Result "0-1"]
[ECO "B15"]
[WhiteElo "2224"]
[BlackElo "2377"]
[Annotator "TA"]
[PlyCount "60"]
[EventDate "2022.07.14"]
[EventType "swiss"]
[EventCountry "NED"]
[SourceTitle "playchess.com"]
[Source "ChessBase"]
[SourceQuality "1"]
[TimeControl "40/5400+30:1800+30"]

{[%evp 12,60,26,22,48,41,44,35,25,39,52,0,32,0,31,14,13,35,30,20,47,-43,-39,-94,-92,-107,-106,-133,-148,-263,-251,-312,-307,-340,-342,-347,-324,-319,-307,-652,-644,-828,-445,-439,-438,-445,-404,-660,-623,-658,-630]} 1. e4 {[%emt 0:00:02]} c6 {[%emt 0:00:12]} 2. d4 {[%emt 0:00:16]} d5 {[%emt 0:00:07]} 3. Nc3 {[%emt 0:00:06]} dxe4 {[%emt 0:00:04]} 4. Nxe4 {[%emt 0:00:05]} Nf6 {[%emt 0:00:01]} 5. Nxf6+ {[%emt 0:02:17]} exf6 {[%emt 0:00:49]} 6. c3 {[%emt 0:00:41]} Bd6 {[%emt 0:00:13]} 7. Bd3 {[%emt 0:00:13]} Na6 {[%emt 0:00:03][%cal Bb8a6,Ba6c7,Bc7d5][%mdl 32] B15: Caro-Kann: 3 Nc3: 3...g6 and 3...dxe4 4 Nxe4 Nf6 5 Nxf6+ exf6.} 8. Qc2 {[%emt 0:01:08]} Nc7 {[%emt 0:00:31]} 9. Ne2 {[%emt 0:00:51]} h5 {[%emt 0:00:23] White is slightly better.} 10. Bd2 {[%emt 0:09:43]} Nd5 {[%emt 0:00:06]} 11. O-O-O {[%emt 0:00:31]} ({Better is} 11. O-O $14) 11... Kf8 {[%emt 0:00:46]} 12. Kb1 {[%emt 0:03:58] [#]} (12. c4 $5 {[%cal Rc4d5]} Nb4 13. Bxb4 Bxb4 14. Kb1 $11) 12... g6 $146 {[%emt 0:01:00]} ({Predecessor:} 12... b5 13. Ng3 Be6 14. Ne4 g6 15. h3 Kg7 16. g4 Nf4 17. f3 Qc7 18. Nxd6 Qxd6 {½-½ (44) Zhugin,N (2117)-Aleksandrov,D (2125) Anapa 2022}) 13. c4 {[%emt 0:09:28][%cal Bc3c4,Bc4c5][%mdl 32]} Nb4 {[%emt 0:00:40]} 14. Bxb4 {[%emt 0:00:05]} Bxb4 {[%emt 0:00:03]} 15. c5 {[%emt 0:09:05]} Ba5 {[%emt 0:01:00]} 16. Qb3 {[%emt 0:03:54]} (16. f4 $14) 16... Kg7 $15 {[%emt 0:03:24]} 17. Bc4 {[%emt 0:06:45]} (17. Qc2 $15) 17... Re8 $17 {[%emt 0:09:00]} 18. Nc3 {[%emt 0:11:12]} b5 {[%emt 0:14:28]} 19. cxb6 {[%emt 0:04:08]} axb6 {[%emt 0:04:12][%cal Ba7b6,Bb6b5][%mdl 32]} 20. d5 {[%emt 0:09:46] [#]} (20. Bxf7 $17 Bf5+ 21. Ka1) 20... b5 $1 $19 {[%emt 0:02:13]} 21. Bf1 {[%emt 0:02:36]} Bxc3 {[%emt 0:16:24]} 22. Qxc3 {[%emt 0:00:16]} Bf5+ {[%emt 0:00:12]} ({Weaker is} 22... cxd5 23. Bxb5 Bf5+ 24. Ka1 $19) 23. Ka1 {[%emt 0:01:31]} Re5 {[%emt 0:06:39]} ({Not} 23... cxd5 24. Bxb5 Rc8 25. Qb4 $17) 24. d6 {[%emt 0:02:34]} Be6 {[%emt 0:03:31]} 25. a3 {[%emt 0:03:07]} (25. b3) 25... Qb6 {[%emt 0:02:54] aiming for ...b4.} 26. Kb1 {[%emt 0:03:13]} Qxf2 {[%emt 0:01:40] ...Rc5 is the strong threat.} 27. Bd3 {[%emt 0:02:45]} Qxg2 {[%emt 0:03:20]} 28. Bc2 {[%emt 0:03:30]} Rd8 {[%emt 0:06:40][%cal Od8d6] Hoping for ...Rxd6!} 29. h4 {[%emt 0:01:41] [#]} (29. Qg3 $142 Qxg3 30. hxg3) 29... Rxd6 $3 {[%emt 0:02:40][%mdl 512]} 30. Rdg1 {[%emt 0:00:54]} (30. Rc1 Re2) 30... Qd5 {[%emt 0:00:41] Weighted Error Value: White=0.54/Black=0.25 (precise)} 0-1

[Event "Dutch Open 2022"]
[Site "Dieren"]
[Date "2022.07.29"]
[Round "4.9"]
[White "Albers, Sasa"]
[Black "Stillger, Bernhard"]
[Result "0-1"]
[ECO "C42"]
[WhiteElo "2203"]
[BlackElo "2245"]
[Annotator "TA"]
[PlyCount "80"]
[EventDate "2022.07.14"]
[EventType "swiss"]
[EventCountry "NED"]
[SourceTitle "playchess.com"]
[Source "ChessBase"]
[SourceQuality "1"]
[TimeControl "40/5400+30:1800+30"]

{[%evp 13,80,8,9,0,15,0,0,9,27,9,16,0,0,0,26,32,79,51,52,62,57,39,50,58,44,0,0,-15,48,0,0,7,108,101,104,99,112,83,135,26,68,44,120,110,208,214,335,345,347,127,119,-45,-42,-154,-168,-156,-135,-12834,-12846,-6218,-6218,-6218,-6203,-2269,-2137,-1667,-835,-1654,-1626]} 1. e4 {[%emt 0:00:03]} e5 {[%emt 0:05:52]} 2. Nf3 {[%emt 0:00:07]} Nf6 {[%emt 0:00:04]} 3. Nxe5 {[%emt 0:00:20]} d6 {[%emt 0:00:05]} 4. Nf3 {[%emt 0:00:08]} Nxe4 {[%emt 0:00:06]} 5. Nc3 {[%emt 0:00:19]} Nxc3 {[%emt 0:00:07]} 6. dxc3 {[%emt 0:00:05]} Be7 {[%emt 0:00:05]} 7. Be3 {[%emt 0:00:09]} O-O {[%emt 0:00:08]} 8. Bd3 {[%emt 0:01:41] C42: Petroff Defence: 3 Nxe5 and unusual White 3rd moves.} Nd7 {[%emt 0:01:45]} 9. Qd2 {[%emt 0:00:37] 9.Qe2 is more advanced technology.} Nf6 {[%emt 0:07:11]} 10. O-O-O {[%emt 0:11:04] The position is equal.} c5 {[%emt 0:00:22]} 11. Kb1 {[%emt 0:02:52]} b5 {[%emt 0:02:15]} 12. h4 {[%emt 0:10:39][%cal Bh2h4,Bh4h5,Bh5h6][%mdl 32] [#]} d5 $146 {[%emt 0:08:05]} ({Predecessor:} 12... Bg4 13. Rdg1 Rb8 14. Ng5 c4 15. Bf1 d5 16. f3 Bd7 17. g4 b4 18. Bd4 Qa5 {0-1 (49) Zuse,P (2215)-Sipos,I (2476) Baden 2019}) 13. h5 {[%emt 0:21:22]} c4 {[%emt 0:17:44]} 14. Be2 {[%emt 0:01:46]} Be6 {[%emt 0:03:43]} (14... h6 $14) 15. Ng5 {[%emt 0:04:23]} (15. Nd4 $5 {[%cal Rd4c6]}) 15... Ne4 {[%emt 0:12:29]} 16. Nxe4 {[%emt 0:00:05]} dxe4 {[%emt 0:00:04]} 17. Qc1 {[%emt 0:01:35]} Qc7 {[%emt 0:02:28]} 18. h6 {[%emt 0:08:18] [#] aiming for hxg7.} g6 {[%emt 0:00:31]} 19. Bg5 {[%emt 0:05:19]} f6 {[%emt 0:01:58]} 20. Bf4 {[%emt 0:00:10]} Qb6 {[%emt 0:02:17]} (20... Qc6 $11) 21. Be3 {[%emt 0:21:34]} (21. f3 $1 $14) 21... Qb7 {[%emt 0:05:56]} 22. Bd4 {[%emt 0:01:03]} b4 {[%emt 0:02:10]} (22... Bd5 $11) 23. cxb4 $16 {[%emt 0:01:31]} Bxb4 {[%emt 0:04:40]} 24. Qe3 {[%emt 0:00:01]} Rab8 {[%emt 0:06:27][%cal Ob4c5]} 25. f3 {[%emt 0:03:28]} Bc5 {[%emt 0:07:19]} 26. Qc1 {[%emt 0:01:43]} (26. Qxe4 $16 Qxe4 27. fxe4 Bxd4 28. Rxd4) 26... Ba3 {[%emt 0:05:08]} 27. Ka1 {[%emt 0:00:02]} c3 {[%emt 0:01:15]} 28. Bxc3 {[%emt 0:00:01]} (28. bxa3 Qd5) 28... Rfc8 {[%emt 0:01:45]} (28... Qc6 $16 {was called for.}) 29. Bxf6 $18 {[%emt 0:00:35]} Bf8 {[%emt 0:00:56]} (29... exf3 $142 30. gxf3 (30. Bxf3 Qa6 $16) 30... Qf7) 30. b3 {[%emt 0:01:13]} a5 {[%emt 0:00:37][%cal Oa5a4]} 31. Qb2 $2 {[%emt 0:00:29]} (31. Bb2 $18 {is more deadly.} a4 32. c4 (32. bxa4 Bc4 $16)) 31... a4 $16 {[%emt 0:00:13]} 32. Rb1 $2 {[%emt 0:02:53]} (32. Bg7 $16 {Strongly threatening Bxf8.} Bxg7 33. hxg7 (33. Qxg7+ Qxg7+ 34. hxg7 Rxc2 $19) 33... Qxg7 34. Qxg7+ (34. fxe4 Rxc2 35. Qxg7+ Kxg7 $17) 34... Kxg7 35. Kb2 (35. bxa4 $2 Rxc2 36. Bb5 Rxa2+ 37. Kb1 Rxa4 $19)) 32... Qf7 $15 {[%emt 0:00:26] And now ...axb3 would win.} 33. Bg7 {[%emt 0:00:50] [#]} (33. fxe4 axb3 34. Be5 (34. cxb3 $2 Rxb3 35. Qd4 Ra8 $19) 34... Rxc2 35. Bxb8 Rxb2 36. Rxb2 Ba3 37. Rxb3 Bxb3 38. axb3 Qf6+ 39. e5 Qf2 40. Bc4+ Kh8 $19) ({White should try} 33. Rbc1 $15 Ra8 34. Bg5 (34. fxe4 $2 axb3 35. cxb3 Rxc1+ 36. Qxc1 Bxb3 $19)) 33... axb3 $1 $17 {[%emt 0:01:02]} ({Don't take} 33... a3 34. Qe5 $14) 34. cxb3 {[%emt 0:00:02]} (34. Bxf8 bxa2 35. Qxb8 axb1=Q+ 36. Qxb1 Qa7+ 37. Kb2 Rb8+ 38. Kc3 Qe3+ 39. Bd3 Rc8+) 34... Rxb3 {[%emt 0:01:00] Chess con chili.} ({Don't do} 34... exf3 35. Bxf3 Bxb3 36. Bxf8 Qxf8 37. Qd4 $16 (37. axb3 Ra8+ 38. Bxa8 Rxa8+ 39. Qa2 Rxa2+ 40. Kxa2 Qa8+ 41. Kb2 Qxg2+ 42. Ka3 Qc6 $11)) 35. axb3 {[%emt 0:00:47][%mdl 8192] Now White is beyond hope.} (35. Qf6 $17 Ra3 36. Qxf7+ Bxf7 37. Rb2) 35... Ra8+ $19 {[%emt 0:00:18] Black is clearly winning.} 36. Qa2 {[%emt 0:00:01]} Rxa2+ {[%emt 0:00:48]} 37. Kxa2 {[%emt 0:00:01]} Qa7+ {[%emt 0:00:48]} 38. Kb2 {[%emt 0:00:00]} Ba3+ {[%emt 0:00:46]} 39. Kc2 {[%emt 0:00:59]} Qe3 {[%emt 0:00:06]} 40. Rhe1 {[%emt 0:01:40]} Bb4 {[%emt 0:00:24] Weighted Error Value: White=0.72/Black=0.29 (precise)} 0-1

[Event "Dutch Open 2022"]
[Site "Dieren"]
[Date "2022.07.29"]
[Round "4.10"]
[White "Manukonda Arun"]
[Black "Zwirs, Jasper"]
[Result "1-0"]
[ECO "D47"]
[WhiteElo "2021"]
[BlackElo "2105"]
[Annotator "TA"]
[PlyCount "101"]
[EventDate "2022.07.14"]
[EventType "swiss"]
[EventCountry "NED"]
[SourceTitle "playchess.com"]
[Source "ChessBase"]
[SourceQuality "1"]
[TimeControl "40/5400+30:1800+30"]

{[%evp 16,101,31,24,33,49,65,-1,61,8,17,22,23,43,31,30,34,36,35,29,91,117,151,0,94,97,86,89,75,77,142,125,125,99,194,204,164,189,156,182,194,175,248,253,277,266,268,183,507,496,933,625,623,619,608,597,554,509,466,455,508,464,464,461,627,608,606,591,650,640,725,725,678,572,1348,1293,1285,1271,1247,1022,1214,1129,29985,29986,29989,29990,29990,29991]} 1. d4 {[%emt 0:08:09]} d5 {[%emt 0:00:47]} 2. c4 {[%emt 0:00:03]} e6 {[%emt 0:00:07]} 3. Nc3 {[%emt 0:00:01]} Nf6 {[%emt 0:00:06]} 4. Nf3 {[%emt 0:00:33]} c6 {[%emt 0:01:15]} 5. e3 {[%emt 0:01:25]} Nbd7 {[%emt 0:01:48]} 6. Bd3 {[%emt 0:00:56]} dxc4 {[%emt 0:01:10]} 7. Bxc4 {[%emt 0:00:06]} b5 {[%emt 0:00:03]} 8. Be2 {[%emt 0:00:42]} a6 {[%emt 0:00:38]} 9. O-O {[%emt 0:00:20]} c5 {[%emt 0:01:26] D47: Semi-Slav: Meran System.} 10. d5 {[%emt 0:01:05]} e5 {[%emt 0:20:31] [#]} 11. e4 $146 {[%emt 0:05:11]} ({White should try} 11. Qc2 $14) ({Predecessor:} 11. Qc2 Bd6 12. e4 O-O 13. a4 b4 14. Nb1 a5 15. Nbd2 Nb6 16. b3 Bg4 17. Re1 {½-½ (52) Akkozov,B (2353)-Malakhatko,V (2514) Almaty 2016}) 11... Bd6 {[%emt 0:07:55]} (11... b4 $11) 12. Bg5 {[%emt 0:07:29]} (12. Nd2 $14) 12... h6 $11 {[%emt 0:06:50]} 13. Bh4 {[%emt 0:00:24]} g5 {[%emt 0:11:38]} 14. Bg3 {[%emt 0:01:03]} b4 {[%emt 0:04:16]} 15. Na4 {[%emt 0:02:43][%cal Bc3a4,Ba4b6,Bb6c4][%mdl 32] Nd2 is the strong threat.} Nxe4 {[%emt 0:04:50]} 16. Bd3 {[%emt 0:06:20]} Nxg3 {[%emt 0:08:09]} 17. fxg3 {[%emt 0:00:54] Strongly threatening Nd2.} Bb7 {[%emt 0:17:52]} (17... e4 $11 {remains equal.} 18. Bxe4 a5) 18. Nd2 $1 $16 {[%emt 0:12:19][%mdl 1024] White has strong compensation.} Qe7 {[%emt 0:02:51]} 19. Bf5 $2 {[%emt 0:02:05]} (19. Ne4 $16) 19... Nf6 {[%emt 0:02:19]} (19... Bxd5 $11 {keeps the balance.} 20. Be4 (20. Ne4 Bxe4 21. Bxe4 Rd8 $11) 20... Qe6) 20. Nb6 {[%emt 0:01:23] Pair of Knights! White leaves nothing to chance now.} Rd8 {[%emt 0:02:17]} 21. Ne4 {[%emt 0:08:54]} Nxe4 {[%emt 0:01:01]} 22. Bxe4 {[%emt 0:00:51]} h5 {[%emt 0:00:35] [#]} ({Better is} 22... O-O) 23. Qa4+ $1 {[%emt 0:09:04]} Kf8 {[%emt 0:00:10]} 24. Nc4 {[%emt 0:00:26] 0x0.00144d629a69dp-1022s more active pieces.} Bc8 {[%emt 0:02:52]} (24... Rh6 $16 {was worth a try.}) 25. Bg6 $1 $18 {[%emt 0:02:38]} f6 {[%emt 0:00:16] [#]} 26. Rxf6+ $3 {[%emt 0:01:36][%mdl 512]} Qxf6 {[%emt 0:00:10]} 27. Rf1 {[%emt 0:00:02]} Qxf1+ {[%emt 0:00:36]} 28. Kxf1 {[%emt 0:00:02] Dancing on a razor blade.} Kg7 {[%emt 0:00:16]} (28... Ke7 $142 29. Qc6 h4) 29. Be4 {[%emt 0:08:31]} Rhf8+ {[%emt 0:00:52]} 30. Ke1 {[%emt 0:00:17] aiming for Qc6.} Rf6 {[%emt 0:00:39]} 31. Qd1 {[%emt 0:01:58]} Bg4 {[%emt 0:00:32]} (31... Be7 32. Qd2 (32. Qxh5 Rh6 $16) (32. Nxe5 g4 $16) 32... Rh6) 32. Qc1 {[%emt 0:00:43]} Rg6 {[%emt 0:01:06]} (32... Kh6 $142 33. h4 Kg7 34. hxg5 Rf7 35. Nxd6 Rxd6 36. Qxc5 Rfd7 37. Qxb4 Kg8) 33. Bxg6 {[%emt 0:00:31]} Kxg6 {[%emt 0:00:05]} 34. Nxd6 {[%emt 0:00:09]} Rxd6 {[%emt 0:00:08]} 35. Qxc5 {[%emt 0:00:04][%mdl 4096] Endgame KQ-KRB} Rd7 {[%emt 0:00:17]} 36. d6 {[%emt 0:00:23]} Kf6 {[%emt 0:00:12]} 37. h3 {[%emt 0:01:38]} Bf5 {[%emt 0:00:31]} 38. Qxb4 {[%emt 0:00:25]} g4 {[%emt 0:00:18]} 39. Qd2 {[%emt 0:01:40]} gxh3 {[%emt 0:01:53]} 40. gxh3 {[%emt 0:00:39]} Bg6 {[%emt 0:00:09]} 41. Qb4 {[%emt 0:31:37]} e4 {[%emt 0:10:54]} 42. Ke2 {[%emt 0:00:00]} Bf5 {[%emt 0:05:21]} 43. Ke3 {[%emt 0:00:00]} Bxh3 {[%emt 0:10:39]} 44. Kxe4 {[%emt 0:00:00]} Be6 {[%emt 0:01:29]} 45. Qd4+ {[%emt 0:00:00]} Kf7 {[%emt 0:00:27]} 46. b3 {[%emt 0:00:00]} Rb7 {[%emt 0:00:16]} 47. Qf2+ {[%emt 0:00:00]} Ke8 {[%emt 0:02:13]} 48. Ke5 {[%emt 0:00:00]} Kd7 {[%emt 0:00:15]} 49. a4 {[%emt 0:00:00] White mates.} Bxb3 {[%emt 0:01:23]} 50. Qf5+ {[%emt 0:00:00]} Kd8 {[%emt 0:01:44]} 51. Qf3 {[%emt 0:00:00] Weighted Error Value: White=0.26 (precise) /Black=0.45} 1-0

[Event "Dutch Open 2022"]
[Site "Dieren"]
[Date "2022.07.29"]
[Round "4.11"]
[White "Maatman, Nick"]
[Black "Shakhverdian, William"]
[Result "1-0"]
[ECO "D31"]
[WhiteElo "2368"]
[BlackElo "2040"]
[Annotator "TA"]
[PlyCount "55"]
[EventDate "2022.07.14"]
[EventType "swiss"]
[EventCountry "NED"]
[SourceTitle "playchess.com"]
[Source "ChessBase"]
[SourceQuality "1"]
[TimeControl "40/5400+30:1800+30"]

{[%evp 9,55,26,18,28,33,29,43,34,25,26,159,140,159,144,367,93,348,387,393,406,411,406,385,391,378,407,362,372,355,254,385,366,284,152,328,325,306,285,29976,681,792,780,944,943,1350,429,29996,29997]} 1. d4 {[%emt 0:00:02]} d5 {[%emt 0:00:08]} 2. c4 {[%emt 0:00:03]} e6 {[%emt 0:00:07]} 3. Nc3 {[%emt 0:00:03]} a6 {[%emt 0:00:23]} 4. cxd5 {[%emt 0:00:07]} exd5 {[%emt 0:00:05]} 5. Qb3 {[%emt 0:00:04]} Nf6 {[%emt 0:03:43]} 6. Bg5 {[%emt 0:00:30] D31: Queen's Gambit Declined: Semi-Slav without ...Nf6 (+ Marshall Gambit and Noteboom) and Exchange Variation lines without ...Nf6.} c6 {[%emt 0:07:30]} 7. e4 {[%emt 0:00:43]} dxe4 {[%emt 0:04:29]} 8. Bc4 {[%emt 0:00:04] White is slightly better.} Qe7 {[%emt 0:06:23]} 9. a4 {[%emt 0:00:14]} Be6 {[%emt 0:17:33]} (9... h6 $11 {keeps the balance.} 10. Bd2 c5 11. dxc5 Nc6) 10. Bxe6 $16 {[%emt 0:04:00]} fxe6 {[%emt 0:00:24]} 11. Nge2 {[%emt 0:00:28] White is more active.} h6 $2 {[%emt 0:02:55] [#]} (11... a5 $16) 12. Nf4 $146 {[%emt 0:12:07]} (12. Bxf6 $18 {is the precise move to win.} gxf6 13. Nf4 (13. Nxe4 Qb4+ 14. Qc3 Nd7 $14)) ({Predecessor:} 12. Bxf6 gxf6 13. O-O f5 14. Nf4 Kf7 15. Nxe6 Qxe6 16. Qxb7+ Nd7 17. Qxa8 Bg7 18. Qxa6 Bxd4 {1-0 (36) Simek,P (2324)-Malinovsky,P (2081) Plzen 2020}) 12... Rh7 $2 {[%emt 0:13:04][%mdl 8192]} (12... hxg5 $16 13. Ng6 Qb4 14. Qxe6+ (14. Qxb4 Bxb4 15. Nxh8 Nbd7 $11) 14... Kd8 15. Nxh8 Qxb2) 13. Bxf6 $18 {[%emt 0:08:15]} gxf6 {[%emt 0:00:08]} 14. O-O {[%emt 0:00:12]} f5 {[%emt 0:04:13]} 15. Nxe6 {[%emt 0:02:49]} Qb4 {[%emt 0:03:30]} 16. Qd1 {[%emt 0:01:12] Hoping for Qh5+.} Qd6 {[%emt 0:05:42]} 17. Qh5+ {[%emt 0:02:03]} Rf7 {[%emt 0:00:18]} 18. d5 {[%emt 0:00:08] Threatens to win with f3.} (18. Qg6 Ke7 19. Nxf8 Rxf8 20. Qh7+ Rf7 $16) 18... Nd7 {[%emt 0:02:49]} 19. Rad1 {[%emt 0:02:03] Strongly threatening f3.} ({And not} 19. Qg6 Ne5 20. Qh5 Rc8 $11) 19... Nc5 {[%emt 0:07:24]} (19... Rc8 {was necessary.} 20. f3 cxd5) 20. Nxc5 {[%emt 0:13:38]} ({Not} 20. Qg6 Ke7 $18) 20... Qxc5 {[%emt 0:00:08] [#]} 21. dxc6 {[%emt 0:00:05]} (21. Rfe1 $1 $18 Qe7 22. dxc6 bxc6 23. g4) 21... bxc6 $2 {[%emt 0:01:33]} (21... Qxc6 $16 {keeps fighting.} 22. Rd5 Qf6) 22. Qg6 {[%emt 0:21:32][%cal Oa4a5] And now a5! would win.} Ke7 {[%emt 0:02:47]} 23. Rfe1 {[%emt 0:07:49][%cal Oc3e4] Nxe4! would kill now.} Ke8 $2 {[%emt 0:04:34] [#]} (23... Rg7 $18 24. Nxe4 Rxg6 25. Nxc5+ Kf7) 24. a5 {[%emt 0:04:26]} (24. Nxe4 $142 $1 {[%mdl 512]} fxe4 25. Rxe4+ Be7 26. Rf4 Bf6 27. Rxf6 Raa7 28. Re1+ Rae7 29. Qg8+ Kd7 30. Rxf7) 24... Raa7 {[%emt 0:02:47]} 25. Na4 {[%emt 0:03:06]} Qb5 {[%emt 0:00:24]} 26. Nb6 {[%emt 0:04:52] White threatens Qe6+ and mate.} Rac7 {[%emt 0:01:32]} 27. Nc8 {[%emt 0:06:54]} Qxa5 {[%emt 0:02:16]} (27... Qe5 $18) 28. Qe6+ {[%emt 0:00:42] Black did not feel at home in the position after the opening.  Weighted Error Value: White=0.71/Black=1.17} 1-0

[Event "Dutch Open 2022"]
[Site "Dieren"]
[Date "2022.07.29"]
[Round "4.12"]
[White "Labruyere, Roger"]
[Black "Baselmans, Luuk"]
[Result "1-0"]
[ECO "B30"]
[WhiteElo "2070"]
[BlackElo "2256"]
[Annotator "TA"]
[PlyCount "95"]
[EventDate "2022.07.14"]
[EventType "swiss"]
[EventCountry "NED"]
[SourceTitle "playchess.com"]
[Source "ChessBase"]
[SourceQuality "1"]
[TimeControl "40/5400+30:1800+30"]

{[%evp 9,95,34,37,32,31,41,42,50,60,41,71,2,9,-18,-16,-3,-14,-22,0,0,0,10,13,0,11,0,18,14,25,0,0,0,0,-5,81,68,400,391,516,517,558,438,446,442,565,588,573,572,920,867,777,654,661,630,770,363,362,332,654,647,670,654,815,659,814,812,787,788,822,804,940,935,925,905,1266,1185,1170,1141,29975,29975,29993,29993,29996,29995,29995,29996,29997,29995]} 1. e4 {[%emt 0:05:23]} c5 {[%emt 0:00:12]} 2. Nf3 {[%emt 0:00:09]} Nc6 {[%emt 0:00:08]} 3. Bb5 {[%emt 0:00:11]} Nd4 {[%emt 0:00:45]} 4. Nxd4 {[%emt 0:01:32]} cxd4 {[%emt 0:00:07]} 5. O-O {[%emt 0:00:10]} a6 {[%emt 0:01:00]} 6. Bc4 {[%emt 0:00:44] B30: Sicilian: 2...Nc6 3 Bb5, lines without ...g6.} e6 {[%emt 0:00:34]} 7. d3 {[%emt 0:00:42]} b5 {[%emt 0:02:47]} 8. Bb3 {[%emt 0:00:31] White is slightly better.} Bb7 {[%emt 0:00:10]} 9. Nd2 {[%emt 0:03:47]} Ne7 {[%emt 0:02:03]} 10. Nf3 {[%emt 0:02:25]} (10. f4 $16) 10... Nc6 $11 {[%emt 0:00:47]} 11. c3 {[%emt 0:01:38]} Bc5 {[%emt 0:01:03] [#]} 12. Ng5 $146 {[%emt 0:04:52][%cal Og5f7] Threatens to win with Nxf7!} ({Predecessor:} 12. Bg5 Qa5 13. Rc1 Rc8 14. Bd2 Qd8 15. Qe2 O-O 16. h4 d6 17. h5 h6 18. c4 {0-1 (59) Seraoui,M (2123)-Salhi,N (1944) Tiaret 2017}) 12... Qe7 {[%emt 0:30:27]} 13. Qh5 {[%emt 0:07:01]} g6 {[%emt 0:00:22]} 14. Qe2 {[%emt 0:04:34]} Qf6 {[%emt 0:04:48]} 15. Nf3 {[%emt 0:00:45]} h6 {[%emt 0:00:23] Against Bg5} 16. Bd2 {[%emt 0:05:14]} g5 {[%emt 0:02:57]} 17. h3 {[%emt 0:02:32]} Rc8 {[%emt 0:03:32]} 18. Rac1 {[%emt 0:01:13]} O-O {[%emt 0:01:32]} 19. Kh1 {[%emt 0:01:12]} (19. c4 $5 {[%cal Rc4b5]}) 19... Qg7 {[%emt 0:02:35]} 20. Nh2 {[%emt 0:02:49]} dxc3 {[%emt 0:04:16]} 21. bxc3 {[%emt 0:01:32]} b4 {[%emt 0:00:06]} (21... Ne7 $11 {keeps the balance.}) 22. cxb4 $16 {[%emt 0:05:14]} Bxb4 {[%emt 0:00:37][%mdl 8192] [#] This move loses the game for Black.} ({Black should try} 22... Bd6 $14) 23. Rxc6 $1 $18 {[%emt 0:00:38][%mdl 512]} Bxc6 {[%emt 0:03:30]} (23... Qb2 24. Rb6) 24. Bxb4 {[%emt 0:00:14]} Rfe8 {[%emt 0:00:17]} 25. Qh5 {[%emt 0:01:31]} Kh7 {[%emt 0:09:51]} 26. f4 {[%emt 0:04:43]} gxf4 {[%emt 0:01:55]} 27. Rxf4 {[%emt 0:02:03]} f5 {[%emt 0:00:07] [#]} 28. Ng4 $1 {[%emt 0:04:55][%cal Ob4c3][%mdl 512] Black must now prevent Bc3!} Bxe4 {[%emt 0:08:14]} (28... Qg6 29. exf5) 29. dxe4 {[%emt 0:03:34][%cal Ob4c3] Bc3! is the strong threat.} fxg4 {[%emt 0:00:22]} 30. hxg4 {[%emt 0:01:55]} Kg8 {[%emt 0:00:27] Prevents Rf7.} 31. Rf1 {[%emt 0:05:50][%cal Bf4f1,Bf1d1,Bd1d7,Bd7f7,Bf7f5][%mdl 32]} Qg5 {[%emt 0:03:42]} 32. Qxg5+ {[%emt 0:00:20]} (32. Qf7+ $142 Kh8 {[#]} 33. Bc3+ $1 {[%mdl 512]} e5 34. Rf5) 32... hxg5 {[%emt 0:00:06]} 33. Rd1 {[%emt 0:00:29]} Kf7 $2 {[%emt 0:02:15]} (33... Rc7 34. Bd2 Rb8 35. Bxg5 Rb4) 34. Rxd7+ {[%emt 0:00:21]} Kf6 {[%emt 0:00:06]} 35. Bd6 {[%emt 0:05:34]} e5 {[%emt 0:05:45]} 36. Rf7+ {[%emt 0:00:46]} Kg6 {[%emt 0:00:06]} 37. Rf5 {[%emt 0:00:19]} Rh8+ {[%emt 0:01:26]} 38. Kg1 {[%emt 0:00:22]} Rc1+ {[%emt 0:00:10]} 39. Kf2 {[%emt 0:00:12]} Rhh1 {[%emt 0:00:17]} 40. Bxe5 {[%emt 0:01:13]} Rce1 {[%emt 0:01:18]} 41. Rf3 {[%emt 0:32:48]} a5 {[%emt 0:32:12]} 42. Bc3 {[%emt 0:00:42][%csl LRa5,LRe1]} Ref1+ {[%emt 0:01:58]} 43. Kg3 {[%emt 0:00:12]} Rfg1 {[%emt 0:01:02]} 44. e5 {[%emt 0:00:27][%cal Be4e5,Be5e6][%mdl 32] White mates.} Rh8 {[%emt 0:01:12]} 45. e6 {[%emt 0:00:12]} Re8 {[%emt 0:00:19]} 46. Rf6+ {[%emt 0:00:23]} Kh7 {[%emt 0:00:06]} 47. Rf7+ {[%emt 0:00:12]} Kh6 {[%emt 0:00:39]} 48. Bg7+ {[%emt 0:00:12] Weighted Error Value: White=0.28 (precise) /Black=0.59} 1-0